bitfinex-derivatives/quotes_BTCF0:USTF0_20250429
["timestamp","ask_amount","ask_price","bid_price","bid_amount"]
[1745968022492,0.77311602,94016.0,94015.0,0.2887188]
[1745968022888,0.63241602,94016.0,94015.0,0.2887188]
[1745968023490,0.63241602,94016.0,94015.0,0.23560754]
[1745968025197,0.75241602,94016.0,94015.0,0.23560754]
[1745968026192,0.49211602,94016.0,94015.0,0.23560754]
[1745968026501,0.49211602,94016.0,94015.0,0.37453362]
[1745968026703,0.63141602,94016.0,94015.0,0.37453362]
[1745968031204,0.63141602,94016.0,94015.0,0.23513362]
[1745968031503,0.90851602,94016.0,94015.0,0.23513362]
[1745968032206,1.02851602,94016.0,94015.0,0.23513362]
[1745968033509,0.40211602,94016.0,94015.0,0.23513362]
[1745968033698,0.40211602,94016.0,94015.0,0.37753362]
[1745968033895,0.28211602,94016.0,94015.0,0.48389761]
[1745968034301,0.16211602,94016.0,94015.0,0.48389761]
[1745968034502,0.15811602,94016.0,94015.0,0.48389761]
[1745968034704,0.17111602,94016.0,94015.0,0.48389761]
[1745968034898,0.31211602,94016.0,94015.0,0.53636279]
[1745968035507,0.17111602,94016.0,94015.0,0.53636279]
[1745968036098,0.17111602,94016.0,94015.0,0.65636279]
[1745968037209,0.17111602,94016.0,94015.0,0.4299988]
[1745968037798,0.17111602,94016.0,94015.0,0.8413988]
[1745968038611,0.31281602,94016.0,94015.0,0.8413988]
[1745968039807,0.66329252,94016.0,94015.0,0.48632]
[1745968040117,0.78329252,94016.0,94015.0,0.48632]
[1745968040813,0.78329252,94016.0,94015.0,0.6989988]
[1745968041207,0.78329252,94016.0,94015.0,0.6240788]
[1745968041711,0.57061602,94016.0,94015.0,0.6989988]
[1745968042113,0.45061602,94016.0,94015.0,0.6989988]
[1745968043703,0.45061602,94016.0,94015.0,0.2875988]
[1745968045113,0.45061602,94016.0,94015.0,0.2126788]
[1745968045313,0.17111602,94016.0,94015.0,0.2126788]
[1745968045511,0.06474945,94016.0,94015.0,0.2875988]
[1745968045712,0.30931488,94016.0,94015.0,0.2875988]
[1745968046015,0.30931488,94016.0,94015.0,0.4841788]
[1745968046215,0.30931488,94016.0,94015.0,0.6790988]
[1745968046402,0.17111488,94016.0,94015.0,0.6790988]
[1745968046608,0.17111488,94016.0,94015.0,0.78546279]
[1745968046802,0.17111488,94016.0,94015.0,1.19686279]
[1745968047002,0.05474945,94016.0,94015.0,1.19686279]
[1745968047509,0.05474945,94016.0,94015.0,1.12194279]
[1745968047510,0.01474945,94016.0,94015.0,1.12194279]
[1745968047717,0.3608,94033.0,94032.0,0.2126403]
[1745968048013,0.5808,94033.0,94032.0,0.6989603]
[1745968048219,0.5808,94033.0,94032.0,0.8189603]
[1745968048422,0.24634621,94033.0,94032.0,0.9253083]
[1745968048604,0.24634621,94033.0,94032.0,1.1996083]
[1745968049014,0.24734621,94033.0,94032.0,1.2006083]
[1745968049405,0.24734621,94033.0,94032.0,1.0942603]
[1745968050014,0.25612982,94033.0,94032.0,1.0952603]
[1745968052018,0.25612982,94033.0,94032.0,1.0203403]
[1745968052422,0.25612982,94033.0,94032.0,1.0953003]
[1745968053016,0.36612982,94033.0,94032.0,0.9579003]
[1745968053816,0.36612982,94033.0,94032.0,0.8829403]
[1745968054016,0.36612982,94033.0,94032.0,0.8210003]
[1745968054326,0.36612982,94033.0,94032.0,0.7010003]
[1745968055031,0.36612982,94033.0,94032.0,0.002]
[1745968055319,0.36612982,94033.0,94012.0,0.00159553]
[1745968055320,1.08327782,94033.0,94020.0,0.07492]
[1745968055622,0.5734652,94021.0,94020.0,0.07492]
[1745968055922,0.7408,94021.0,94013.0,0.2126816]
[1745968056116,0.6676343,94020.0,94019.0,0.07492]
[1745968056423,0.0531687,94017.0,94013.0,0.2126826]
[1745968056634,0.2126788,94015.0,94014.0,0.07492]
[1745968056817,0.5926788,94015.0,94014.0,0.07492]
[1745968057016,0.85761798,94015.0,94014.0,0.07492]
[1745968057227,0.75130575,94015.0,94014.0,0.287601]
[1745968057623,0.75130575,94015.0,94014.0,0.07492]
[1745968057822,0.75230575,94015.0,94014.0,0.07492]
[1745968058831,0.75230575,94015.0,94014.0,0.287601]
[1745968059029,0.75230575,94015.0,94014.0,0.07492]
[1745968059030,0.75430575,94015.0,94014.0,0.07492]
[1745968059528,0.75430575,94015.0,94014.0,0.287601]
[1745968060419,0.76529416,94015.0,94014.0,0.287601]
[1745968062327,0.75430575,94015.0,94014.0,0.287601]
[1745968067115,0.75430575,94015.0,94014.0,0.568701]
[1745968067521,0.62490575,94015.0,94014.0,0.568701]
[1745968067926,0.48970575,94015.0,94014.0,0.568701]
[1745968068122,0.48970575,94015.0,94014.0,0.688701]
[1745968069030,0.48970575,94015.0,94014.0,0.688741]
[1745968069228,0.48970575,94015.0,94014.0,0.58084319]
[1745968070222,0.48970575,94015.0,94014.0,0.70084319]
[1745968073732,0.48970575,94015.0,94014.0,0.70098824]
[1745968073936,0.48970575,94015.0,94014.0,0.70098826]
[1745968077736,0.48970575,94015.0,94014.0,0.70099115]
[1745968078130,0.48970575,94015.0,94014.0,0.70103012]
[1745968078535,0.48970575,94015.0,94014.0,0.80739811]
[1745968079535,0.48970575,94015.0,94014.0,0.79510899]
[1745968079739,0.48970575,94015.0,94014.0,0.80750231]
[1745968080236,0.48970575,94015.0,94014.0,0.70113432]
[1745968082242,0.48970575,94015.0,94014.0,0.69905432]
[1745968083039,0.48970575,94015.0,94014.0,0.69902132]
[1745968083238,0.48970575,94015.0,94014.0,0.686661]
[1745968084242,0.48970575,94015.0,94014.0,0.69876568]
[1745968087139,0.41274575,94015.0,94014.0,0.69876568]
[1745968087333,0.41274575,94015.0,94014.0,0.80513367]
[1745968089831,0.30637918,94015.0,94014.0,0.80513367]
[1745968090544,0.14333918,94015.0,94014.0,1.21653367]
[1745968092338,0.14333918,94015.0,94014.0,1.57733367]
[1745968096432,0.14333918,94015.0,94014.0,1.56522899]
[1745968100250,0.00159597,94050.0,94032.0,0.2126403]
[1745968100251,0.3608,94042.0,94032.0,0.2126403]
[1745968100543,0.19,94033.0,94032.0,0.6969203]
[1745968101137,0.19,94033.0,94032.0,1.0677203]
[1745968101347,0.144082,94033.0,94032.0,1.0677203]
[1745968101945,0.145082,94033.0,94032.0,1.1750683]
[1745968102345,0.12890179,94033.0,94032.0,1.1750683]
[1745968102543,0.12990179,94033.0,94032.0,1.1760683]
[1745968102741,0.12990179,94033.0,94032.0,1.18675021]
[1745968107042,0.12990179,94033.0,94032.0,1.11387021]
[1745968107238,0.12990179,94033.0,94032.0,1.18671021]
[1745968110753,0.06520379,94033.0,94032.0,1.18671021]
[1745968111043,0.057302,94033.0,94032.0,1.18671021]
[1745968111243,0.1314,94052.0,94051.0,0.2125974]
[1745968111452,0.3414,94052.0,94051.0,1.0562774]
[1745968111753,0.26955839,94052.0,94051.0,1.0562774]
[1745968111944,0.13815839,94052.0,94051.0,1.0562774]
[1745968112147,0.13815839,94052.0,94051.0,1.4343774]
[1745968112457,0.13915839,94052.0,94051.0,1.4353774]
[1745968112753,0.14015839,94052.0,94051.0,1.4353774]
[1745968113345,0.35275349,94052.0,94051.0,1.1772774]
[1745968113543,0.14015839,94052.0,94051.0,1.1782774]
[1745968113849,0.13915839,94052.0,94051.0,1.1772774]
[1745968114055,0.14015839,94052.0,94051.0,1.1792774]
[1745968114358,0.14015839,94052.0,94051.0,1.0592774]
[1745968114556,0.14015839,94052.0,94051.0,0.9748774]
[1745968115254,0.14015839,94052.0,94051.0,1.0948774]
[1745968116247,0.35275349,94052.0,94051.0,0.6984774]
[1745968116641,0.52648311,94052.0,94051.0,0.6984774]
[1745968116849,0.24648311,94052.0,94051.0,0.6984774]
[1745968117050,0.45907821,94052.0,94051.0,0.6984774]
[1745968118248,0.24648311,94052.0,94051.0,0.6984774]
[1745968118651,0.45907821,94052.0,94051.0,0.6984774]
[1745968120659,0.73907821,94052.0,94051.0,0.6984774]
[1745968120873,0.45907821,94052.0,94051.0,0.6984774]
[1745968123871,0.24648311,94052.0,94051.0,0.6984774]
[1745968124658,0.24648311,94052.0,94051.0,0.9748774]
[1745968124861,0.14015839,94052.0,94051.0,0.9748774]
[1745968125246,0.14015839,94052.0,94051.0,1.0948774]
[1745968125449,0.14015839,94052.0,94051.0,1.0233974]
[1745968125645,0.14015839,94052.0,94051.0,1.0948774]
[1745968127156,0.14015839,94052.0,94051.0,0.9748774]
[1745968129259,0.14015839,94052.0,94051.0,1.0948774]
[1745968134064,0.55907821,94052.0,94051.0,0.8184774]
[1745968134261,0.67907821,94052.0,94051.0,0.6984774]
[1745968134464,0.67907821,94052.0,94051.0,0.4144]
[1745968134763,1.03540221,94052.0,94051.0,0.4144]
[1745968134964,1.03540221,94052.0,94051.0,0.48588]
[1745968135265,1.03540221,94052.0,94051.0,0.003]
[1745968135467,0.2126381,94033.0,94032.0,0.00159502]
[1745968135659,1.3642381,94033.0,94032.0,0.00159502]
[1745968135859,1.7205861,94033.0,94032.0,0.07307502]
[1745968136163,1.94691082,94033.0,94032.0,0.07307502]
[1745968137352,1.94791082,94033.0,94032.0,0.07507502]
[1745968137651,1.69891082,94033.0,94032.0,0.07607502]
[1745968138064,1.70964622,94033.0,94032.0,0.07607502]
[1745968138561,1.84344622,94033.0,94032.0,0.07607502]
[1745968138760,1.93414622,94033.0,94032.0,0.07607502]
[1745968140975,0.0531652,94023.0,94015.0,0.1945]
[1745968141274,0.3608,94017.0,94016.0,0.2841565]
[1745968141483,0.5108,94017.0,94016.0,0.2841565]
[1745968141661,0.51108282,94017.0,94016.0,0.2841565]
[1745968142070,0.6174443,94017.0,94016.0,0.2841565]
[1745968143469,0.6194443,94017.0,94016.0,0.2841565]
[1745968144167,1.5835186,94017.0,94016.0,0.07148]
[1745968144668,1.5835186,94017.0,94016.0,0.2841565]
[1745968144857,1.5845186,94017.0,94016.0,0.2841565]
[1745968145261,1.7282083,94017.0,94005.0,0.07016]
[1745968145571,0.3608,94006.0,94005.0,0.2828614]
[1745968145770,0.7308,94006.0,94005.0,0.4239614]
[1745968145960,0.73227067,94006.0,94005.0,0.4239614]
[1745968146158,0.83863497,94006.0,94005.0,0.4239614]
[1745968147174,0.47783497,94006.0,94005.0,0.5566614]
[1745968147361,0.84063497,94006.0,94005.0,0.5566614]
[1745968147557,0.84063497,94006.0,94005.0,0.2738]
[1745968147763,1.15971007,94006.0,94005.0,0.21126]
[1745968147963,0.94901097,94006.0,94005.0,0.4239614]
[1745968148165,0.84263497,94006.0,94005.0,0.4239614]
[1745968148677,0.98043497,94006.0,94005.0,0.4239614]
[1745968149959,0.84263497,94006.0,94005.0,0.4239614]
[1745968150164,0.48183497,94006.0,94005.0,0.5556614]
[1745968151160,0.60183497,94006.0,94005.0,0.5556614]
[1745968153970,0.96263497,94006.0,94005.0,0.5556614]
[1745968154278,0.60183497,94006.0,94005.0,0.5556614]
[1745968154669,0.60183497,94006.0,94005.0,0.4855014]
[1745968154862,0.60183497,94006.0,94005.0,0.5557014]
[1745968155062,0.96263497,94006.0,94005.0,0.5557014]
[1745968155568,0.60183497,94006.0,94005.0,0.5557014]
[1745968162983,0.96263497,94006.0,94005.0,0.5557014]
[1745968164473,0.96263497,94006.0,94005.0,0.4855014]
[1745968164677,0.96263497,94006.0,94005.0,0.5557014]
[1745968168187,0.81453407,94006.0,94005.0,0.343]
[1745968168384,0.81453407,94006.0,94005.0,0.2113]
[1745968168385,1.17533407,94006.0,94005.0,0.2113]
[1745968169881,1.31393407,94006.0,94005.0,0.2113]
[1745968170476,1.31393407,94006.0,94005.0,0.0702]
[1745968173885,1.31393407,94006.0,94005.0,0.2087]
[1745968174588,1.31393407,94006.0,94005.0,0.0702]
[1745968176094,1.19393407,94006.0,94005.0,0.0702]
[1745968177591,1.31393407,94006.0,94005.0,0.0702]
[1745968179295,1.19393407,94006.0,94005.0,0.0702]
[1745968180781,1.19393407,94006.0,94005.0,0.08238241]
[1745968180982,1.19393407,94006.0,94005.0,0.21778241]
[1745968183485,1.19393407,94006.0,94005.0,0.43048381]
[1745968183486,0.98123497,94006.0,94005.0,0.43048381]
[1745968183688,0.48183497,94006.0,94005.0,0.5634014]
[1745968183907,0.69453407,94006.0,94005.0,0.2056]
[1745968184192,0.97283407,94006.0,94005.0,0.20492]
[1745968184694,0.97283407,94006.0,94005.0,0.4176214]
[1745968184893,0.73381097,94006.0,94005.0,0.20492]
[1745968185081,0.62743497,94006.0,94005.0,0.20492]
[1745968185284,0.84013407,94006.0,94005.0,0.5627214]
[1745968186093,0.62743497,94006.0,94005.0,0.5627214]
[1745968186292,0.84013407,94006.0,94005.0,0.5627214]
[1745968186494,0.84013407,94006.0,94005.0,0.4176214]
[1745968186894,0.84013407,94006.0,94005.0,0.5582214]
[1745968187194,0.62743497,94006.0,94005.0,0.5582214]
[1745968187396,0.48183497,94006.0,94005.0,0.5582214]
[1745968187596,0.01,94021.0,94010.0,0.0531722]
[1745968187802,0.2,94021.0,94020.0,0.2126675]
[1745968187993,0.2127557,93981.0,93980.0,0.00531903]
[1745968188190,0.2127625,93978.0,93977.0,3e-08]
[1745968188499,0.43092214,93978.0,93977.0,3e-08]
[1745968188694,0.21815964,93978.0,93977.0,3e-08]
[1745968189087,0.32456808,93978.0,93977.0,3e-08]
[1745968189290,0.46226808,93978.0,93977.0,3e-08]
[1745968189788,0.46426808,93978.0,93977.0,3e-08]
[1745968189994,0.46326808,93978.0,93977.0,0.28228483]
[1745968190295,0.32556808,93978.0,93977.0,0.40228483]
[1745968190702,0.32756808,93978.0,93977.0,0.40328483]
[1745968190899,0.32756808,93978.0,93977.0,0.61602483]
[1745968191095,0.32756808,93978.0,93977.0,0.86602483]
[1745968191293,0.32756808,93978.0,93977.0,1.13762483]
[1745968191489,0.32756808,93978.0,93977.0,0.88762483]
[1745968194287,0.68836808,93978.0,93977.0,0.40328483]
[1745968194700,0.79477608,93978.0,93969.0,0.06952]
[1745968195001,0.3608,93970.0,93969.0,0.3354985]
[1745968195295,0.75481848,93970.0,93969.0,0.4554985]
[1745968195496,0.89061848,93970.0,93969.0,0.4554985]
[1745968195704,0.99702692,93970.0,93969.0,0.4554985]
[1745968196000,0.99702692,93970.0,93969.0,0.4564985]
[1745968196705,0.99902692,93970.0,93969.0,0.4564985]
[1745968197002,1.00102692,93970.0,93969.0,0.4564985]
[1745968198692,1.00102692,93970.0,93969.0,0.3869785]
[1745968198892,1.00102692,93970.0,93969.0,0.4564985]
[1745968200810,1.00102692,93970.0,93969.0,0.19052]
[1745968201000,1.21380752,93970.0,93969.0,0.4033029]
[1745968203905,0.2127874,93967.0,93966.0,0.1316]
[1745968204097,0.38,93967.0,93966.0,0.20296]
[1745968204295,0.38067942,93967.0,93966.0,0.4157497]
[1745968204495,0.48709692,93967.0,93966.0,0.5570497]
[1745968205205,0.48709692,93967.0,93966.0,0.6780497]
[1745968205206,0.48909692,93967.0,93966.0,0.6780497]
[1745968205994,0.49109692,93967.0,93966.0,0.6780497]
[1745968206302,0.49109692,93967.0,93966.0,0.8907897]
[1745968206496,0.48909692,93967.0,93966.0,0.8907897]
[1745968206695,0.49109692,93967.0,93966.0,0.8907897]
[1745968207408,0.49109692,93967.0,93966.0,0.9972097]
[1745968207609,0.49109692,93967.0,93966.0,0.8907897]
[1745968208205,0.49109692,93967.0,93966.0,0.60664]
[1745968208507,0.85189692,93967.0,93966.0,0.6770497]
[1745968208909,0.99329692,93967.0,93966.0,0.6770497]
[1745968209602,1.31250432,93967.0,93966.0,0.4041497]
[1745968209803,1.31250432,93967.0,93966.0,0.5383497]
[1745968209804,1.45320432,93967.0,93966.0,0.5383497]
[1745968210310,0.2128191,93953.0,93943.0,0.2477098]
[1745968210510,0.7608,93953.0,93952.0,0.31738985]
[1745968210811,0.76640427,93953.0,93952.0,0.03320845]
[1745968211000,0.87284103,93953.0,93952.0,0.31738985]
[1745968211200,0.87284103,93953.0,93952.0,0.43738985]
[1745968211201,1.08566013,93953.0,93952.0,0.43738985]
[1745968211502,1.08766013,93953.0,93952.0,0.43738985]
[1745968212107,1.08766013,93953.0,93952.0,0.22456845]
[1745968212619,1.08966013,93953.0,93952.0,0.36086845]
[1745968212912,1.08966013,93953.0,93952.0,0.57368985]
[1745968213113,1.08966013,93953.0,93952.0,0.57338985]
[1745968213312,1.22706013,93953.0,93952.0,0.57338985]
[1745968213714,1.22706013,93953.0,93952.0,0.36056845]
[1745968213915,1.22706013,93953.0,93952.0,0.57338985]
[1745968214105,1.22706013,93953.0,93940.0,0.0532119]
[1745968214106,1.12067703,93953.0,93944.0,0.0714]
[1745968214302,0.5736372,93945.0,93944.0,0.0714]
[1745968214497,0.9936372,93945.0,93944.0,0.0714]
[1745968214703,0.995223,93945.0,93944.0,0.0714]
[1745968214908,0.99527563,93945.0,93918.0,0.00535]
[1745968215214,0.3608,93926.0,93910.0,0.1246289]
[1745968215415,0.3608,93911.0,93910.0,0.3375452]
[1745968215715,0.51165035,93911.0,93910.0,0.3375452]
[1745968215903,0.3608,93926.0,93925.0,0.2128826]
[1745968216215,0.16,93926.0,93925.0,0.59864]
[1745968216404,0.16,93926.0,93925.0,1.1679906]
[1745968216606,0.27496885,93926.0,93925.0,0.9179906]
[1745968217207,0.2828095,93926.0,93925.0,0.9179906]
[1745968217400,0.2828095,93926.0,93925.0,1.1679906]
[1745968218512,0.2878095,93926.0,93925.0,1.1679906]
[1745968218817,0.2878095,93926.0,93925.0,1.3127906]
[1745968219704,0.2878095,93926.0,93925.0,1.4526906]
[1745968220119,0.2878095,93926.0,93925.0,1.2026906]
[1745968220506,0.2978095,93926.0,93925.0,1.2026906]
[1745968221005,0.0595298,93955.0,93954.0,0.09274]
[1745968221209,0.3608,93982.0,93954.0,0.09274]
[1745968221210,0.1414,93981.0,93965.0,0.2127919]
[1745968221407,0.111,93966.0,93965.0,0.7377319]
[1745968221604,0.22885424,93966.0,93965.0,0.6663319]
[1745968221811,0.22885424,93966.0,93942.0,0.0532105]
[1745968221812,0.2128146,93955.0,93954.0,1.24876]
[1745968222115,0.2128327,93947.0,93946.0,0.0714]
[1745968222307,0.2128395,93944.0,93943.0,0.0714]
[1745968222612,0.39,93944.0,93931.0,0.09274]
[1745968222817,0.3608,93939.0,93932.0,0.0714]
[1745968223117,0.1343,93938.0,93933.0,0.2128637]
[1745968223319,0.48710328,93938.0,93933.0,0.0532161]
[1745968223614,0.10644696,93937.0,93934.0,0.0532153]
[1745968223815,0.31444696,93937.0,93936.0,0.2128576]
[1745968224005,0.44884696,93937.0,93936.0,0.2128576]
[1745968224208,0.31444696,93937.0,93936.0,0.3328576]
[1745968224518,0.31444696,93937.0,93936.0,0.4255976]
[1745968225120,0.31444696,93937.0,93936.0,0.5665976]
[1745968225317,0.31844696,93937.0,93936.0,0.5745976]
[1745968226229,0.31844696,93937.0,93936.0,0.128]
[1745968226719,0.31844696,93937.0,93936.0,0.3408576]
[1745968227025,0.31844696,93937.0,93936.0,0.4122576]
[1745968227512,0.31821302,93937.0,93936.0,0.4122576]
[1745968228921,0.53106842,93937.0,93936.0,0.1994]
[1745968229117,0.31821302,93937.0,93936.0,0.1994]
[1745968229515,0.63752442,93937.0,93936.0,0.1994]
[1745968229821,0.74552442,93937.0,93936.0,0.1994]
[1745968231315,0.74552442,93937.0,93907.0,0.00159732]
[1745968231316,0.2129211,93908.0,93907.0,0.00159732]
[1745968231524,0.8537211,93908.0,93907.0,0.00159732]
[1745968231718,1.3602091,93908.0,93907.0,0.00159732]
[1745968231920,1.22502314,93908.0,93907.0,0.00159732]
[1745968232119,1.0201207,93908.0,93907.0,0.12159732]
[1745968232316,1.3395298,93908.0,93907.0,0.12159732]
[1745968232518,1.3425298,93908.0,93907.0,0.12359732]
[1745968233020,1.3445298,93908.0,93907.0,0.12359732]
[1745968233222,0.0532331,93903.0,93870.0,0.5]
[1745968233453,0.3608,93896.0,93885.0,0.0532428]
[1745968233740,0.85769698,93896.0,93888.0,0.0532415]
[1745968233939,0.96419438,93896.0,93895.0,0.2183006]
[1745968234238,0.96419438,93896.0,93895.0,0.12]
[1745968234635,0.96719438,93896.0,93895.0,0.12]
[1745968235036,0.97019438,93896.0,93895.0,0.3329506]
[1745968235240,0.86369438,93896.0,93895.0,0.3329506]
[1745968236340,0.61629438,93896.0,93895.0,0.3329506]
[1745968237042,0.61629438,93896.0,93895.0,0.12]
[1745968237043,0.82924268,93896.0,93895.0,0.12]
[1745968237341,0.93574268,93896.0,93895.0,0.12]
[1745968237943,0.72279438,93896.0,93895.0,0.12]
[1745968238245,0.93574268,93896.0,93895.0,0.12]
[1745968238739,0.72279438,93896.0,93895.0,0.12]
[1745968239142,0.82924268,93896.0,93895.0,0.12]
[1745968240040,0.82624268,93896.0,93895.0,0.12]
[1745968240240,0.82924268,93896.0,93895.0,0.12]
[1745968241330,0.61629438,93896.0,93895.0,0.12]
[1745968241642,0.61529438,93896.0,93895.0,0.12]
[1745968242034,0.73499438,93896.0,93895.0,0.12]
[1745968242436,0.94794268,93896.0,93895.0,0.12]
[1745968242637,0.73499438,93896.0,93895.0,0.12]
[1745968242830,0.94794268,93896.0,93895.0,0.12]
[1745968243545,0.73499438,93896.0,93895.0,0.12]
[1745968243729,0.62159438,93896.0,93895.0,0.4256906]
[1745968244334,0.00805177,93908.0,93895.0,1.0173]
[1745968244530,0.3608,93926.0,93922.0,0.2128894]
[1745968244531,0.03,93923.0,93922.0,0.2128894]
[1745968244740,0.06,93923.0,93922.0,0.2128894]
[1745968244933,0.16649457,93923.0,93922.0,0.3056294]
[1745968245134,0.16649457,93923.0,93922.0,0.6537294]
[1745968245732,0.16849457,93923.0,93922.0,0.6537294]
[1745968246343,0.17049457,93923.0,93922.0,0.6537294]
[1745968247437,0.17868335,93923.0,93922.0,0.6537294]
[1745968249447,0.49804246,93923.0,93922.0,0.12]
[1745968249836,0.39157045,93923.0,93922.0,0.12]
[1745968250042,0.50437045,93923.0,93922.0,0.12]
[1745968251049,0.29148335,93923.0,93922.0,0.12]
[1745968251549,0.29148335,93923.0,93922.0,0.3328894]
[1745968252253,0.29148335,93923.0,93922.0,0.12]
[1745968252436,0.29148335,93923.0,93922.0,0.3328894]
[1745968252637,0.17868335,93923.0,93922.0,0.4256294]
[1745968253439,0.17868335,93923.0,93922.0,0.6130294]
[1745968253655,0.24918335,93923.0,93922.0,0.6130294]
[1745968260659,0.24918335,93923.0,93922.0,0.6888694]
[1745968264066,0.24918335,93923.0,93922.0,0.47598]
[1745968264360,0.82287045,93923.0,93922.0,0.30594]
[1745968264562,0.46207045,93923.0,93922.0,0.30594]
[1745968264857,0.82287045,93923.0,93922.0,0.30594]
[1745968265064,0.212912,93912.0,93911.0,0.153]
[1745968265265,0.602912,93912.0,93911.0,0.0767]
[1745968265460,0.60353559,93912.0,93911.0,0.0767]
[1745968265658,0.71000635,93912.0,93911.0,0.0767]
[1745968265963,0.65149435,93912.0,93903.0,0.14814]
[1745968266149,0.0532285,93911.0,93907.0,0.09274]
[1745968266349,0.39,93911.0,93908.0,0.0723]
[1745968266562,0.2129188,93909.0,93908.0,0.0723]
[1745968266861,0.6329188,93909.0,93908.0,0.0723]
[1745968267065,0.63359909,93909.0,93908.0,0.16504]
[1745968267262,0.81608458,93909.0,93908.0,0.28504]
[1745968267958,0.82008458,93909.0,93908.0,0.28504]
[1745968268159,0.60716578,93909.0,93908.0,0.28504]
[1745968268556,0.82008458,93909.0,93908.0,0.28504]
[1745968269667,0.53116578,93909.0,93908.0,0.4979611]
[1745968271166,0.36898878,93923.0,93922.0,0.2128894]
[1745968271167,0.00818878,93923.0,93922.0,0.2128894]
[1745968271466,0.32,93923.0,93922.0,0.3056294]
[1745968271669,0.63937373,93923.0,93922.0,0.3056294]
[1745968271870,0.71847373,93923.0,93922.0,0.3056294]
[1745968272169,0.50558663,93923.0,93922.0,0.5730294]
[1745968272354,0.50758663,93923.0,93922.0,0.5730294]
[1745968273568,0.50958663,93923.0,93922.0,0.5740294]
[1745968274155,0.87038663,93923.0,93922.0,0.5740294]
[1745968274355,0.43830543,93923.0,93922.0,0.5740294]
[1745968275257,0.43830543,93923.0,93922.0,0.121]
[1745968275258,1.01199253,93923.0,93922.0,0.121]
[1745968275462,0.79910543,93923.0,93922.0,0.3338894]
[1745968275967,0.87230543,93923.0,93922.0,0.3338894]
[1745968276171,0.87230543,93923.0,93922.0,0.4992294]
[1745968276763,0.43830543,93923.0,93922.0,0.4992294]
[1745968278372,0.0532139,93937.0,93922.0,0.4992294]
[1745968278373,0.3608,93945.0,93935.0,0.2128599]
[1745968278564,0.261,93936.0,93935.0,0.3814399]
[1745968279075,0.36745602,93936.0,93935.0,0.4086999]
[1745968279273,0.36745602,93936.0,93935.0,0.5014399]
[1745968279578,0.36945602,93936.0,93935.0,0.5738399]
[1745968279761,0.37739028,93936.0,93935.0,0.5738399]
[1745968280073,0.26939028,93936.0,93935.0,0.5758399]
[1745968280275,0.00159786,93946.0,93945.0,0.2128372]
[1745968280472,0.04159786,93946.0,93945.0,0.3055772]
[1745968280672,0.04159786,93946.0,93945.0,0.4558772]
[1745968280879,0.14805388,93946.0,93945.0,0.4558772]
[1745968281178,0.15596576,93946.0,93945.0,0.5758772]
[1745968281475,0.16796576,93946.0,93945.0,0.5768772]
[1745968281674,0.16896576,93946.0,93945.0,0.5788772]
[1745968282068,0.16896576,93946.0,93945.0,0.5808772]
[1745968286366,0.38180076,93946.0,93945.0,0.36598]
[1745968286566,0.38180076,93946.0,93945.0,0.27324]
[1745968287475,0.38180076,93946.0,93945.0,0.20084]
[1745968287675,0.38080076,93946.0,93945.0,0.19884]
[1745968287975,0.37880076,93946.0,93945.0,0.19784]
[1745968291575,0.62880076,93946.0,93945.0,0.08077064]
[1745968291778,0.62880076,93946.0,93927.0,0.00532226]
[1745968291779,0.2128758,93928.0,93927.0,0.00532226]
[1745968291965,0.9336758,93928.0,93927.0,0.00532226]
[1745968292277,0.9336758,93928.0,93927.0,0.12532226]
[1745968292461,1.04012049,93928.0,93927.0,0.12532226]
[1745968292667,1.16492049,93928.0,93927.0,0.12532226]
[1745968293177,1.16492049,93928.0,93927.0,0.13332226]
[1745968293767,1.27238449,93928.0,93927.0,0.137]
[1745968293968,0.212903,93916.0,93915.0,0.07424]
[1745968294168,0.2129052,93915.0,93914.0,0.00532226]
[1745968294371,0.7528052,93915.0,93914.0,0.00532226]
[1745968294681,0.85938336,93915.0,93914.0,0.00532226]
[1745968294883,0.2129143,93911.0,93910.0,0.00532226]
[1745968295084,0.4629143,93911.0,93910.0,0.00532226]
[1745968295284,0.45242453,93911.0,93910.0,0.07072226]
[1745968295480,0.55890436,93911.0,93910.0,0.07072226]
[1745968295784,0.55890436,93911.0,93910.0,0.13482226]
[1745968296175,0.55890436,93911.0,93910.0,0.25482226]
[1745968296375,0.35699006,93911.0,93910.0,0.25482226]
[1745968296574,0.56990436,93911.0,93910.0,0.25482226]
[1745968296776,0.34899006,93911.0,93910.0,0.25482226]
[1745968296971,0.56290436,93911.0,93910.0,0.25482226]
[1745968297677,0.56390436,93911.0,93910.0,0.26182226]
[1745968298873,0.56390436,93911.0,93910.0,0.33610226]
[1745968300384,0.35099006,93911.0,93910.0,0.54901886]
[1745968300582,0.35099006,93911.0,93910.0,0.64175886]
[1745968301678,0.19,93926.0,93925.0,0.21820486]
[1745968301882,0.22,93926.0,93925.0,0.31094486]
[1745968302082,0.22,93926.0,93925.0,0.43094486]
[1745968302279,0.32648436,93926.0,93925.0,0.43094486]
[1745968302474,0.32648436,93926.0,93925.0,0.55604486]
[1745968302672,0.32648436,93926.0,93925.0,0.34316226]
[1745968302879,0.53936466,93926.0,93925.0,0.124]
[1745968303186,0.54036466,93926.0,93925.0,0.124]
[1745968303573,0.60646466,93926.0,93925.0,0.12932226]
[1745968304281,0.60646466,93926.0,93925.0,0.124]
[1745968304674,0.60646466,93926.0,93925.0,0.12932226]
[1745968305283,0.60646466,93926.0,93925.0,0.124]
[1745968305677,0.39358436,93926.0,93925.0,0.12932226]
[1745968305879,0.60646466,93926.0,93925.0,0.12932226]
[1745968306279,0.39358436,93926.0,93925.0,0.34220486]
[1745968306584,0.39358436,93926.0,93925.0,0.35424215]
[1745968306881,0.39358436,93926.0,93925.0,0.35424208]
[1745968307375,0.32748436,93926.0,93925.0,0.44698208]
[1745968307982,0.54036466,93926.0,93925.0,0.23409948]
[1745968308176,0.54036466,93926.0,93925.0,0.44698208]
[1745968308482,0.54036466,93926.0,93925.0,0.14135948]
[1745968308687,0.54036466,93926.0,93925.0,0.3543751]
[1745968308879,0.54036466,93926.0,93925.0,0.1414925]
[1745968310587,0.54036466,93926.0,93925.0,0.14134283]
[1745968310776,0.66806466,93926.0,93925.0,0.12932226]
[1745968315188,0.66806466,93926.0,93925.0,0.0258]
[1745968315386,0.2129597,93891.0,93890.0,0.00532226]
[1745968315582,0.2129665,93888.0,93887.0,0.00532226]
[1745968315785,0.5929665,93888.0,93887.0,0.00532226]
[1745968316098,0.69977417,93888.0,93887.0,0.00532226]
[1745968316587,0.68777417,93888.0,93887.0,0.00532226]
[1745968316774,0.69363971,93888.0,93887.0,0.00532226]
[1745968317385,0.69363971,93888.0,93887.0,0.06962226]
[1745968318479,0.69363971,93888.0,93887.0,0.0653]
[1745968318686,0.212971,93886.0,93885.0,0.00532226]
[1745968318990,0.212971,93886.0,93869.0,0.07428]